bitfinex/quotes_ETHUSD_20240701
["timestamp","ask_amount","ask_price","bid_price","bid_amount"]
[1719849765111,2.4678,3474.8,3473.0,7.43]
[1719849765250,2.191,3474.5,3473.4,2.87896]
[1719849765455,0.02765186,3474.4,3473.5,0.05757238]
[1719849765700,0.02693492,3474.4,3473.9,2.87854]
[1719849765909,0.02693492,3474.4,3474.0,2.87852]
[1719849766051,9.661,3475.4,3474.1,0.05756557]
[1719849766052,2.37285186,3475.3,3474.1,0.05756557]
[1719849766257,0.02765186,3475.2,3474.3,2.8782]
[1719849766880,0.02765186,3475.2,3474.4,2.87817]
[1719849767191,0.02765186,3475.2,3474.2,2.87832]
[1719849767493,2.37285186,3475.3,3474.6,2.87801]
[1719849767788,2.2676,3475.8,3474.8,2.87781]
[1719849767968,0.02765186,3475.6,3474.8,2.87781]
[1719849768167,0.02765186,3475.6,3474.6,2.87802]
[1719849768399,0.02765186,3475.6,3474.8,2.87785]
[1719849768572,0.02765186,3475.6,3474.7,2.87788]
[1719849769596,0.02765186,3475.6,3474.8,2.87785]
[1719849771493,0.02765186,3475.6,3475.0,2.87763]
[1719849772043,2.2676,3475.8,3475.2,2.87746]
[1719849772044,1.88765186,3475.7,3475.2,2.87746]
[1719849772198,0.02765186,3475.7,3475.3,2.87743]
[1719849772393,0.02765186,3475.7,3474.6,2.87796]
[1719849772394,0.02765186,3475.7,3475.1,2.87754]
[1719849772726,0.02765186,3475.7,3475.0,2.87766]
[1719849772727,0.02765186,3475.7,3475.2,2.87752]
[1719849773019,0.02765186,3475.7,3475.1,2.87754]
[1719849773222,0.02765186,3475.7,3475.2,2.87751]
[1719849773786,0.02765186,3475.7,3475.0,2.87765]
[1719849774025,0.02765186,3475.7,3475.1,2.87761]
[1719849774719,0.02765186,3475.7,3474.8,2.87783]
[1719849775087,0.02704214,3475.6,3474.6,2.87801]
[1719849775290,0.02765186,3475.5,3474.7,3.0]
[1719849776186,0.02765186,3475.7,3474.7,3.0]
[1719849776502,0.02702792,3475.6,3475.0,2.87769]
[1719849776831,2.2676,3475.8,3474.9,2.87772]
[1719849776832,0.02765186,3475.5,3474.9,2.87772]
[1719849777686,0.02765186,3475.7,3474.9,2.87772]
[1719849777887,0.02765186,3475.7,3475.0,2.87769]
[1719849778207,0.02702792,3475.6,3475.0,2.87769]
[1719849778527,0.02765186,3475.5,3474.8,2.87784]
[1719849778985,0.02765186,3475.5,3474.7,5.87793]
[1719849779182,2.3619,3475.4,3474.7,3.0]
[1719849779408,0.02765186,3475.3,3474.5,2.87809]
[1719849779626,0.02765186,3475.3,3474.4,3.0]
[1719849779801,0.02765186,3475.3,3474.5,2.87808]
[1719849780003,0.02765186,3475.3,3474.7,2.87789]
[1719849780311,2.3619,3475.4,3474.9,2.87777]
[1719849780514,0.02765186,3475.3,3474.9,2.87777]
[1719849780728,0.02765186,3475.3,3474.8,2.87785]
[1719849781084,0.02765186,3475.3,3474.7,2.87793]
[1719849781325,0.02765186,3475.3,3474.4,2.87812]
[1719849781585,0.02765186,3475.3,3474.6,2.87797]
[1719849782003,0.02765186,3475.3,3474.5,3.0]
[1719849782004,0.02765186,3475.3,3474.5,5.87807]
[1719849782191,0.02765186,3475.3,3474.1,3.0]
[1719849782528,0.02765186,3475.3,3474.7,2.87794]
[1719849782737,0.02644706,3475.2,3474.5,2.36955855]
[1719849783054,0.02644706,3475.2,3475.0,2.87763]
[1719849783203,0.02765186,3475.6,3475.0,2.87763]
[1719849783399,0.02765186,3475.6,3475.2,2.87752]
[1719849783602,0.02650454,3475.5,3475.2,2.87752]
[1719849783916,0.02650454,3475.5,3475.2,2.87745]
[1719849784112,0.02650454,3475.5,3474.9,2.87774]
[1719849784282,0.02765186,3475.9,3475.2,2.87746]
[1719849784486,0.02648733,3475.4,3475.2,2.87746]
[1719849784726,2.4677,3476.0,3474.9,0.05754827]
[1719849784727,2.4677,3476.0,3475.0,2.87769]
[1719849784896,0.02765186,3475.9,3475.6,2.87717]
[1719849785100,0.02765186,3475.9,3475.4,5.75465]
[1719849785301,0.02765186,3475.9,3475.5,2.87727]
[1719849785532,0.02765186,3475.9,3474.5,5.19008]
[1719849785533,0.02765186,3475.9,3475.7,2.87711]
[1719849785826,0.02765186,3475.9,3475.1,5.19838]
[1719849785827,2.3896,3476.6,3475.9,2.8769]
[1719849786032,0.02765186,3476.5,3475.9,2.8769]
[1719849786386,0.02765186,3476.5,3476.1,2.87672]
[1719849786685,0.02765186,3476.5,3475.9,2.87688]
[1719849788302,0.02765186,3476.5,3475.3,2.87738]
[1719849788610,0.02765186,3476.5,3475.1,5.3208]
[1719849788611,2.4945,3476.2,3475.2,2.87752]
[1719849788818,0.02765186,3476.1,3475.3,3.0]
[1719849789323,0.02765186,3476.1,3475.3,5.87743]
[1719849789519,0.02765186,3476.1,3475.4,2.87734]
[1719849790137,0.02765186,3476.1,3475.6,2.87719]
[1719849790519,0.02765186,3476.1,3475.5,2.4082]
[1719849790702,2.3579,3476.6,3475.4,2.87729]
[1719849790703,0.02576837,3476.0,3475.4,2.87729]
[1719849790900,0.02576837,3476.0,3475.6,2.8772]
[1719849791224,0.02765186,3476.5,3475.6,2.8772]
[1719849791563,0.02591898,3476.4,3475.6,2.8772]
[1719849791834,0.02765186,3476.3,3475.6,2.8772]
[1719849792339,0.02588218,3476.2,3475.6,2.8772]
[1719849792641,0.02588218,3476.2,3475.4,2.87729]
[1719849792642,2.4488,3476.1,3475.0,2.87761]
[1719849792800,0.02765186,3476.0,3475.1,5.87754]
[1719849793315,2.21865186,3476.0,3474.9,2.87771]
[1719849793490,2.21865186,3476.0,3474.7,2.4332]
[1719849793491,0.02765186,3476.0,3475.1,2.87757]
[1719849794117,0.02765186,3476.0,3475.2,2.87745]
[1719849794539,0.02765186,3476.0,3475.3,2.87743]
[1719849794841,0.02765779,3475.9,3475.3,2.87743]
[1719849795323,0.02765779,3475.9,3475.4,2.87736]
[1719849795490,2.4488,3476.1,3475.7,2.87704]
[1719849795690,0.02924485,3475.8,3475.5,2.87722]
[1719849795890,2.4488,3476.1,3475.4,2.87736]
[1719849796138,0.02765186,3476.0,3475.3,2.87739]
[1719849796291,0.02765186,3476.0,3475.0,2.87766]
[1719849797632,0.02765186,3476.0,3475.2,2.87751]
[1719849797790,0.02765186,3476.0,3474.8,8.75561]
[1719849797997,2.3905,3475.8,3474.8,5.87779]
[1719849798228,0.02765186,3475.7,3474.8,5.87779]
[1719849798894,0.02765186,3475.7,3474.4,7.49]
[1719849799095,2.4837,3475.6,3474.5,3.0]
[1719849799297,2.365,3475.4,3474.0,2.87845]
[1719849799600,2.365,3475.2,3473.8,2.87867]
[1719849799821,2.365,3475.0,3473.8,2.87867]
[1719849800132,2.365,3475.0,3473.6,7.49]
[1719849800133,0.02765186,3474.9,3473.6,2.8788]
[1719849800435,0.02765186,3474.9,3473.9,2.8786]
[1719849801095,0.02765186,3474.9,3473.7,2.87871]
[1719849801296,0.02765186,3474.9,3473.8,2.87869]
[1719849803629,0.02765186,3474.9,3473.6,5.06985]
[1719849803832,2.3696,3474.8,3473.7,3.0]
[1719849804049,0.02765186,3474.7,3473.7,3.0]
[1719849804765,0.02765186,3474.7,3473.6,3.0]
[1719849805293,0.02765186,3474.7,3473.5,2.87893]
[1719849805695,2.3696,3474.6,3473.3,2.87909]
[1719849805848,0.02765186,3474.5,3473.4,3.0]
[1719849806050,0.02765186,3474.5,3473.1,2.87921]
[1719849806051,2.3696,3474.4,3473.1,2.87921]
[1719849806243,0.02765186,3474.3,3473.1,2.87921]
[1719849806632,0.02765186,3474.3,3472.9,3.16358542]
[1719849807251,0.02765186,3474.3,3473.0,3.0]
[1719849807963,0.02765186,3474.3,3473.0,5.87934]
[1719849808629,2.2776,3474.2,3473.0,3.0]
[1719849808831,2.2776,3474.2,3472.9,0.28416542]
[1719849808832,0.02765186,3474.1,3472.9,6.16359542]
[1719849809027,0.02765186,3474.1,3472.9,5.87943]
[1719849809227,0.02765186,3474.1,3473.0,2.3946]
[1719849809434,0.02765186,3474.1,3473.5,2.191]
[1719849810792,2.2776,3474.2,3473.9,2.191]
[1719849810987,2.41585186,3474.6,3473.9,2.191]
[1719849812168,0.02765186,3474.5,3474.3,2.191]
[1719849812342,2.3882,3474.6,3474.3,2.191]
[1719849812748,0.02765186,3474.5,3474.3,2.191]
[1719849813240,0.02765186,3474.5,3473.9,2.191]
[1719849814074,0.02765186,3474.5,3473.5,2.191]
[1719849814442,2.2658,3474.4,3473.5,2.191]
[1719849814639,0.02765186,3474.3,3473.5,2.191]
[1719849822771,0.02765186,3474.3,3473.1,2.191]
[1719849822986,2.298,3474.2,3473.1,2.191]
[1719849823183,2.298,3474.0,3473.0,5.87935]
[1719849823358,0.02765186,3473.9,3473.0,5.191]
[1719849823554,0.02765186,3473.9,3473.0,5.07033]
[1719849824275,0.02765186,3473.9,3473.1,2.87921]
[1719849824682,0.02765186,3473.9,3473.4,2.191]
[1719849825587,0.02765186,3473.9,3473.4,5.06999]
[1719849826579,2.3297,3474.4,3473.4,5.06997]
[1719849826759,0.02765186,3474.3,3473.7,2.87877]
[1719849827094,0.02765186,3474.3,3473.8,2.191]
[1719849827303,0.02765186,3474.7,3473.8,5.06965]
[1719849827656,0.02765186,3474.7,3473.9,2.87854]
[1719849827990,0.02765186,3474.7,3473.8,2.191]
[1719849828880,0.02765186,3474.7,3473.8,5.06968]
[1719849829677,0.02765186,3474.7,3473.8,2.191]
[1719849831700,2.4941,3474.6,3473.4,2.87901]
[1719849831876,2.4941,3474.6,3473.4,2.191]
[1719849831877,0.02765186,3474.5,3473.4,2.191]
[1719849832705,2.2738,3474.4,3473.4,2.191]
[1719849832881,0.02765186,3474.3,3473.4,2.191]
[1719849834595,2.2738,3474.6,3473.4,2.191]
[1719849834769,2.30145186,3474.5,3473.4,2.191]
[1719849836190,3.06065186,3474.5,3473.4,2.191]
[1719849836405,2.38245186,3474.4,3473.0,2.191]
[1719849837467,2.34445186,3474.3,3473.0,2.191]
[1719849837670,0.02765186,3474.2,3473.0,2.191]
[1719849837919,2.3168,3474.1,3473.0,2.191]
[1719849838109,0.02765186,3474.0,3473.0,2.191]
[1719849841279,2.3075,3473.9,3473.0,2.191]
[1719849841480,0.02765186,3473.8,3473.0,2.191]
[1719849842907,0.02765186,3473.8,3472.6,2.191]
[1719849844075,0.02765186,3473.8,3473.0,2.191]
[1719849844703,0.02765186,3473.8,3473.0,5.12788256]
[1719849844915,0.02765186,3473.8,3473.0,2.24858256]
[1719849845130,0.02765186,3473.8,3473.1,2.87925]
[1719849845718,0.02765186,3473.8,3473.0,5.12793256]
[1719849846216,0.02765186,3473.8,3473.1,2.87921]
[1719849846414,0.02765186,3473.8,3473.1,5.75841]
[1719849846721,0.02765186,3473.8,3473.0,2.191]
[1719849846887,0.02765186,3473.8,3473.2,2.191]
[1719849847089,0.02765186,3473.8,3472.7,2.191]
[1719849847090,2.2902,3473.7,3472.7,2.191]
[1719849847314,2.2902,3473.5,3472.7,2.191]
[1719849847501,0.02765186,3473.4,3472.7,2.191]
[1719849850806,0.02765186,3473.4,3473.1,2.191]
[1719849854995,2.4472,3473.7,3473.1,2.191]
[1719849855524,0.02765186,3473.6,3473.1,2.191]
[1719849859614,2.4038,3473.5,3472.6,2.191]
[1719849859827,0.02765186,3473.4,3472.6,2.191]
[1719849860039,2.3656,3473.3,3472.6,2.191]
[1719849860246,0.02765186,3473.2,3472.6,2.191]
[1719849860918,0.02765186,3473.2,3472.3,2.191]
[1719849861439,2.4013,3473.1,3471.7,7.29]
[1719849861734,2.4013,3472.9,3472.0,2.191]
[1719849861940,0.02765186,3472.8,3472.0,2.191]
[1719849864005,3.0,3473.5,3472.0,2.191]
[1719849864006,2.2804,3472.7,3472.0,2.191]
[1719849864218,0.02765186,3472.6,3472.0,2.191]
[1719849864941,2.2804,3472.5,3470.8,9.5643]
[1719849865142,3.783,3473.0,3470.8,9.5643]
[1719849865143,2.2804,3472.3,3471.2,2.191]
[1719849865295,2.2804,3472.1,3470.4,2.2743]
[1719849865495,0.02765186,3472.0,3471.0,2.191]
[1719849865696,2.2804,3471.9,3471.0,2.191]
[1719849866008,0.02765186,3471.8,3471.0,2.191]
[1719849866538,2.3488,3471.7,3471.0,2.191]
[1719849866700,0.02765186,3471.6,3471.0,2.191]
[1719849870127,2.40685186,3471.5,3469.5,2.4028]
[1719849870332,2.3792,3471.4,3469.4,2.88233]
[1719849870529,5.4122,3471.2,3469.1,2.4028]
[1719849870831,0.02765186,3471.3,3469.4,2.191]
[1719849870832,2.2507,3471.0,3469.4,2.191]
[1719849870998,2.2507,3470.9,3469.4,2.191]
[1719849871204,2.2507,3470.9,3469.8,2.191]
[1719849871797,2.2507,3470.9,3469.8,2.141]
[1719849871944,2.2507,3470.9,3469.4,2.88233]
[1719849871945,2.2507,3470.9,3468.7,2.4251]
[1719849872241,2.2795,3470.7,3469.1,2.191]
[1719849872409,2.2795,3470.6,3469.1,2.191]
[1719849873313,2.9479,3470.5,3469.1,2.191]
[1719849873531,4.2579,3470.3,3468.6,3.0]
[1719849873885,4.2579,3470.3,3469.0,2.191]
[1719849874018,3.0,3470.2,3469.0,2.191]
[1719849875370,3.0,3470.2,3468.6,2.883]
[1719849875371,3.0,3470.2,3469.8,2.191]
[1719849876340,3.0,3470.2,3469.0,2.88266]
[1719849876543,3.0,3470.2,3469.6,2.191]
[1719849878342,4.2579,3470.3,3469.6,2.191]
[1719849878343,1.86,3470.3,3470.1,2.191]
[1719849878706,2.4395,3470.9,3470.1,2.191]
[1719849879245,7.48,3471.1,3470.6,2.191]
[1719849879466,1.86,3471.5,3470.6,2.191]
[1719849879467,4.238,3471.5,3470.6,2.191]
[1719849879669,4.238,3471.5,3471.0,2.191]
[1719849880110,4.238,3471.5,3471.4,2.191]
[1719849880309,1.86,3471.5,3471.4,2.191]
[1719849888843,1.86,3471.5,3471.4,5.07168]
[1719849889044,1.86,3471.5,3471.4,2.191]
[1719849893675,9.9195,3472.4,3471.8,2.88027]
[1719849893871,9.9195,3472.4,3471.4,2.191]
[1719849893872,2.4395,3472.4,3472.2,2.191]
[1719849895133,2.4936,3472.8,3472.2,2.191]
[1719849895339,2.4936,3472.8,3472.6,2.191]
[1719849896575,2.4936,3472.8,3472.2,2.191]
[1719849896873,2.4936,3472.8,3471.5,2.88058]
[1719849896874,2.4936,3472.8,3471.8,2.191]
[1719849897241,2.4936,3472.8,3471.8,5.07134]
[1719849899068,2.4936,3472.8,3472.2,2.191]
[1719849900888,2.4936,3472.8,3470.9,2.383]
[1719849901179,6.033,3472.9,3471.6,2.191]
[1719849901180,2.3641,3472.6,3471.6,2.191]
[1719849901396,0.02765186,3472.5,3471.6,2.191]
[1719849901547,2.3641,3472.4,3471.2,2.191]
[1719849901746,3.61065186,3472.5,3471.2,2.191]
[1719849901747,2.3641,3472.2,3471.2,2.191]
[1719849901964,0.02765186,3472.1,3471.2,2.191]
[1719849902569,3.02765186,3472.1,3471.2,2.191]
[1719849902880,0.02765186,3472.1,3471.2,2.191]
[1719849903041,3.0,3472.0,3471.2,2.191]
[1719849903245,2.3641,3472.2,3470.4,9.6485]
[1719849903246,0.02765186,3471.9,3470.4,9.6485]
[1719849903443,0.02765186,3471.9,3470.9,2.191]
[1719849904582,0.02765186,3471.9,3471.3,2.191]
[1719849906678,0.02765186,3471.9,3471.7,2.191]
[1719849906987,2.3641,3472.2,3471.7,2.191]
[1719849907289,0.02765186,3472.1,3471.7,2.191]
[1719849907479,0.02765186,3472.1,3470.9,2.88103]
[1719849907789,0.02765186,3472.1,3471.4,2.191]
[1719849909583,0.02765186,3472.1,3471.0,2.191]
[1719849910476,0.57765186,3472.1,3471.0,2.191]
[1719849910648,3.02765186,3472.1,3471.0,2.191]
[1719849910994,0.02765186,3472.1,3471.4,2.191]
[1719849914165,0.02765186,3472.1,3471.0,2.191]
[1719849914774,0.57765186,3472.1,3471.0,2.191]
[1719849915004,3.57765186,3472.1,3471.0,2.191]
[1719849915780,1.86,3471.9,3471.0,2.191]
[1719849915997,1.86,3471.9,3469.0,2.88263]
[1719849915998,2.3021,3471.6,3469.9,2.4526]
[1719849916201,2.3021,3471.4,3470.0,2.191]
[1719849916407,0.02765186,3471.3,3470.0,2.191]
[1719849916714,0.02765186,3471.2,3470.0,2.191]
[1719849916918,0.02765186,3471.2,3470.0,5.07283]
[1719849917375,0.02765186,3471.2,3470.0,2.191]
[1719849917575,0.02765186,3471.2,3470.4,2.191]
[1719849918243,0.02765186,3471.2,3468.2,0.39859947]
[1719849918244,3.033,3470.9,3468.2,0.39859947]
[1719849918375,2.191,3469.6,3468.2,0.11039947]
[1719849918573,0.02765186,3469.5,3468.2,0.11039947]
[1719849918994,0.02765186,3469.5,3467.6,2.88383]
[1719849919516,0.02765186,3469.7,3468.5,2.88308]
[1719849919884,0.02765186,3469.7,3468.3,2.88319]
[1719849920395,0.02765186,3469.7,3468.2,2.88333]
[1719849920396,0.02765186,3469.7,3468.5,2.191]
[1719849922983,0.02765186,3469.7,3468.8,2.191]
[1719849923182,0.02765186,3469.7,3468.6,5.07396]
[1719849924218,2.2507,3469.6,3468.2,2.191]
[1719849924532,0.02765186,3469.5,3468.2,2.88333]
[1719849925322,0.02765186,3469.5,3468.1,0.1194517]
[1719849926598,0.29975765,3469.4,3468.1,0.1194517]
[1719849926802,0.02765186,3469.3,3468.1,0.1194517]
[1719849927128,2.2568,3469.2,3468.1,0.1194517]
[1719849927338,2.28445186,3469.2,3468.1,0.1194517]
[1719849928024,2.28445186,3469.2,3468.2,2.191]
[1719849928224,2.28445186,3469.2,3468.6,2.191]
[1719849928225,0.02765186,3469.2,3468.6,2.191]
[1719849928590,0.02765186,3469.4,3468.6,2.191]
[1719849929209,0.02765186,3469.4,3468.7,2.88286]
[1719849929416,0.02765186,3469.4,3469.0,2.191]
[1719849930206,0.02765186,3469.6,3469.0,2.191]
[1719849930847,0.02765186,3469.9,3469.0,2.191]
[1719849931054,0.02765186,3469.9,3469.4,2.191]
[1719849931199,0.02765186,3469.9,3469.8,2.191]
[1719849931395,1.86,3470.0,3469.8,2.191]
[1719849931642,0.10273955,3469.9,3469.4,2.191]
[1719849932112,0.02765186,3469.9,3468.3,2.88324]
[1719849932432,0.02765186,3469.9,3468.6,2.88299]
[1719849932642,0.02765186,3469.9,3468.8,2.191]
[1719849932938,0.07432476,3469.8,3468.8,2.191]
[1719849933140,0.02765186,3469.7,3468.8,2.191]
[1719849933311,0.02765186,3469.7,3469.2,2.191]
[1719849933527,0.07431287,3469.6,3469.2,2.191]
[1719849933716,0.02765186,3469.5,3469.2,2.191]
[1719849933915,0.07421985,3469.5,3469.2,2.191]
[1719849934115,0.07421985,3469.5,3469.3,2.88242]
[1719849934336,0.02765186,3469.9,3469.3,2.88242]
[1719849934522,0.07419818,3469.4,3469.3,2.88242]
[1719849934727,0.02765186,3469.9,3469.4,2.88231]
[1719849934955,0.02765186,3469.9,3469.7,2.191]
[1719849935124,0.02765186,3469.9,3468.7,2.2756]
[1719849935125,0.02765186,3470.1,3469.3,2.191]
[1719849935660,0.02765186,3470.1,3468.9,2.191]
[1719849936733,3.02765186,3470.1,3468.3,2.88317]
[1719849936920,3.02765186,3470.1,3468.4,2.191]
[1719849937660,3.02765186,3470.1,3468.4,5.07416]
[1719849938159,3.02765186,3470.1,3469.2,2.191]
[1719849939063,3.02765186,3470.1,3468.9,2.191]
[1719849939246,3.02765186,3470.1,3469.3,2.191]
[1719849940123,3.02765186,3470.1,3468.9,2.191]
[1719849940325,0.07431142,3470.0,3468.9,2.191]
[1719849940627,0.02765186,3469.9,3468.9,2.191]
[1719849941074,0.07427771,3469.8,3468.9,2.191]
[1719849941277,0.02765186,3469.7,3468.9,2.191]
[1719849941452,0.10191267,3469.7,3468.9,2.191]
[1719849942352,0.02765186,3469.6,3468.9,2.191]
[1719849942690,0.07420917,3469.5,3468.9,2.191]
[1719849942835,0.02765186,3469.4,3468.9,2.191]
[1719849943183,2.33737535,3469.3,3468.5,2.191]
[1719849943529,2.33737535,3469.3,3468.1,0.1194517]
[1719849943530,4.1232,3469.1,3468.1,0.1194517]
[1719849943803,0.02765186,3469.0,3468.1,0.1194517]
[1719849944003,3.10175865,3469.0,3468.1,0.1194517]
[1719849944235,0.10175865,3469.0,3468.1,0.1194517]
[1719849944512,3.10175865,3469.0,3468.1,0.1194517]
[1719849945002,0.10175865,3469.0,3468.1,0.1194517]
[1719849945507,0.02765186,3469.0,3468.1,0.1194517]
[1719849945806,0.07141766,3468.9,3468.1,0.1194517]
[1719849945977,0.02765186,3468.8,3468.1,0.1194517]
[1719849946384,0.0713638,3468.7,3468.4,2.937]
[1719849946703,0.02765186,3469.0,3468.4,2.937]
[1719849946868,3.0,3469.5,3468.4,2.937]
[1719849946869,0.07137082,3468.6,3468.4,2.937]
[1719849947063,2.4989,3469.7,3468.5,2.88309]
[1719849947262,0.02765186,3469.6,3468.5,2.88309]
[1719849947465,0.02765186,3469.6,3468.4,5.82017]
[1719849947709,0.02765186,3469.6,3468.5,2.88304]
[1719849947911,2.79850636,3469.7,3468.4,2.937]
[1719849948079,0.02765186,3469.5,3468.4,2.99465755]
[1719849948286,0.02765186,3469.5,3468.9,2.937]
[1719849948608,0.02765186,3469.5,3468.8,2.88281]
[1719849949219,0.02765186,3469.5,3468.4,2.99465755]
[1719849949220,0.02765186,3470.0,3468.9,0.05765151]
[1719849949419,0.02765186,3470.0,3469.1,5.81952]
[1719849949769,0.02765186,3470.0,3469.1,2.937]
[1719849949971,0.02765186,3470.0,3468.4,2.937]
[1719849950189,0.02765186,3470.0,3469.0,2.88266]
[1719849951694,0.02765186,3470.0,3468.8,2.88284]
[1719849951895,0.02765186,3470.0,3468.4,2.937]
[1719849952094,0.02765186,3470.0,3468.5,2.88302]
[1719849952825,0.02765186,3470.0,3468.7,2.88291]
[1719849953624,2.3802,3469.9,3468.4,2.937]
[1719849953826,2.3802,3469.7,3468.4,2.937]
[1719849953985,0.02765186,3469.6,3468.0,5.8205]
[1719849954181,0.02765186,3469.6,3468.3,2.88325]
[1719849954582,0.02765186,3469.6,3468.0,2.937]
[1719849954795,2.254,3469.5,3468.0,2.937]
[1719849955009,0.02765186,3469.4,3468.0,2.937]
[1719849955388,0.0716269,3469.3,3468.0,2.937]
[1719849955587,0.02765186,3469.2,3468.0,2.937]
[1719849956022,0.07150478,3469.1,3468.1,3.0028617]
[1719849956235,0.02765186,3469.0,3468.3,2.88323]
[1719849956634,0.07152099,3468.9,3468.1,3.0028517]
[1719849956929,0.02765186,3468.8,3468.1,3.0028517]
[1719849957093,0.02765186,3469.4,3468.1,0.1194517]
[1719849957298,0.07146723,3468.7,3468.1,0.1194517]
[1719849957520,0.02765186,3469.4,3468.1,3.0028017]
[1719849957712,0.07147146,3468.6,3468.2,2.88333]
[1719849958026,0.02765186,3469.4,3468.2,2.88333]
[1719849958334,0.07158984,3469.3,3468.2,2.88333]
[1719849958551,0.02765186,3469.2,3468.2,2.88333]
[1719849959455,2.254,3469.5,3468.1,3.0028517]
[1719849959456,0.02765186,3469.4,3468.1,3.0028517]
[1719849959642,0.02765186,3469.4,3468.3,2.88323]
[1719849959956,0.07158279,3469.3,3468.1,0.1194517]
[1719849960156,0.02765186,3469.2,3468.4,2.8831]
[1719849960319,0.02765186,3469.2,3468.5,2.88306]
[1719849960520,0.02765186,3469.2,3468.4,2.8831]
[1719849960721,0.02765186,3469.2,3468.5,2.88308]
[1719849960921,0.02765186,3469.2,3468.6,2.883]
[1719849961124,0.02765186,3469.4,3468.6,2.883]
[1719849961326,0.07153671,3469.1,3468.7,2.94055763]
[1719849961554,2.254,3469.5,3468.9,2.937]
[1719849961752,0.07152793,3469.0,3468.9,5.81971]
[1719849961922,2.254,3469.5,3468.9,5.81971]
[1719849962117,0.0715,3469.0,3468.9,5.81971]
[1719849962321,2.254,3469.5,3468.9,5.81971]
[1719849962547,0.07152793,3469.0,3468.9,5.81971]
[1719849962750,2.254,3469.5,3468.9,5.81971]
[1719849962965,0.07152793,3469.0,3468.9,5.81971]
[1719849963123,2.254,3469.5,3468.9,5.81971]
[1719849963322,0.07152793,3469.0,3468.9,5.81971]
[1719849963558,0.02765186,3470.1,3468.9,2.937]
[1719849963559,2.2705,3470.0,3468.9,2.937]
[1719849963898,2.2705,3470.0,3469.1,2.88258]
[1719849963899,0.02765186,3469.9,3469.1,2.88258]
[1719849964058,0.02765186,3469.9,3469.4,2.88227]
[1719849964252,0.02765186,3469.9,3469.3,2.88238]
[1719849964591,0.02765186,3469.9,3469.8,2.88201]
[1719849964777,2.29815186,3470.0,3469.8,2.88201]
[1719849965193,2.2705,3470.0,3469.8,2.88201]
[1719849965754,2.2705,3470.0,3469.8,2.88194]
[1719849966494,2.4277,3470.4,3470.2,2.8816]
[1719849968394,2.4277,3470.4,3470.3,2.88159]
[1719849969685,2.3123,3471.2,3470.0,2.201]
[1719849969884,2.3123,3471.2,3469.7,2.201]
[1719849969885,0.02765186,3471.1,3470.7,2.201]
[1719849970101,0.02765186,3471.1,3470.5,2.88141]
[1719849970277,0.02765186,3471.1,3470.4,2.88145]
[1719849970466,0.02765186,3471.1,3469.1,2.317]
[1719849970665,2.4368,3470.9,3468.9,2.88275]
[1719849970974,2.4368,3470.9,3468.7,2.201]
[1719849970975,2.53656012,3470.8,3469.1,2.88258]
[1719849971193,2.4368,3470.6,3469.1,5.08358]
[1719849971392,0.02765186,3470.5,3469.4,2.88233]
[1719849971593,0.09977989,3470.5,3469.5,2.201]
[1719849971828,3.09977989,3470.5,3469.3,2.88241]
[1719849972283,3.09977989,3470.5,3469.5,2.88224]
[1719849972487,3.09977989,3470.5,3469.6,2.88216]
[1719849973195,3.09977989,3470.5,3469.6,2.88212]
[1719849973442,3.09977989,3470.5,3469.7,2.88205]
[1719849973623,3.09977989,3470.5,3469.5,5.81725]
[1719849973919,3.09977989,3470.5,3469.6,2.88212]
[1719849974123,3.09977989,3470.5,3469.9,2.88192]
[1719849974435,3.09977989,3470.5,3470.0,2.88184]
[1719849974436,0.09977989,3470.5,3470.0,2.88184]
[1719849974919,0.07207527,3470.4,3470.0,2.88184]
[1719849975486,0.09972713,3470.4,3470.0,2.88184]
[1719849975707,0.09972713,3470.4,3469.8,2.882]
[1719849976023,0.09972713,3470.4,3469.6,2.88214]
[1719849976024,0.09972713,3470.4,3469.9,2.88191]
[1719849976383,0.07207527,3470.4,3470.0,0.05763108]
[1719849976728,2.4368,3470.6,3470.1,2.8817]
[1719849976926,0.07209904,3470.3,3470.1,2.8817]
[1719849977086,0.02765186,3470.9,3470.1,2.8817]
[1719849977287,0.07208802,3470.2,3470.1,5.82114938]
[1719849977536,0.02765186,3470.9,3470.1,5.82114938]
[1719849977537,0.02765186,3470.9,3470.4,2.88145]
[1719849978519,0.02765186,3470.9,3470.2,2.88162]
[1719849979422,0.02765186,3470.9,3470.0,2.935]
[1719849979618,0.02765186,3470.9,3470.0,5.81683]
[1719849980831,0.02765186,3470.9,3470.0,2.935]
[1719849981250,0.02765186,3470.9,3469.0,5.81764]
[1719849981251,2.3262,3470.8,3469.0,5.81764]
[1719849981386,2.3262,3470.8,3469.4,2.88233]
[1719849981387,0.02765186,3470.7,3469.4,2.88233]
[1719849982111,0.02765186,3470.7,3469.7,2.88208]
[1719849982450,0.02765186,3470.7,3469.5,5.8172]
[1719849982604,0.02765186,3470.7,3469.6,2.8821]
[1719849982807,0.02765186,3470.7,3469.5,2.935]
[1719849982994,0.02765186,3470.7,3469.7,0.05764078]
[1719849983194,0.02765186,3470.7,3469.8,2.88199]
[1719849983506,0.02765186,3470.7,3469.9,2.88192]
[1719849984118,0.02765186,3470.7,3470.1,2.88175]
[1719849984326,0.02765186,3470.7,3470.2,2.88161]
[1719849985320,0.07214626,3470.6,3470.2,2.88161]
[1719849985631,0.02765186,3470.7,3470.1,2.88174]
[1719849985937,0.07214626,3470.6,3470.1,2.88174]
[1719849986235,0.02765186,3470.7,3470.1,2.88174]
[1719849986595,0.07214626,3470.6,3470.1,2.88174]
[1719849986996,0.02765186,3470.7,3470.1,2.88174]
[1719849987326,0.07214626,3470.6,3470.1,2.88174]